bitfinex/quotes_SOLUSD_20250126
["timestamp","ask_amount","ask_price","bid_price","bid_amount"]
[1737866764628,0.063,259.5,259.42,3.8546]
[1737866765202,3.9166,259.5,259.4,3.8549]
[1737866765404,3.9166,259.5,259.41,2.84]
[1737866765915,3.9166,259.5,259.44,20.0]
[1737866766432,3.9166,259.5,259.42,30.0]
[1737866766730,80.9,259.49,259.42,30.0]
[1737866767500,84.7537,259.49,259.42,30.0]
[1737866768918,84.7537,259.49,259.41,32.84]
[1737866769430,84.7537,259.49,259.41,2.84]
[1737866771332,84.7537,259.49,259.41,22.84]
[1737866772410,80.9,259.48,259.41,22.84]
[1737866772724,3.854,259.47,259.41,22.84]
[1737866773534,3.854,259.47,259.41,2.84]
[1737866774832,80.9,259.48,259.41,2.84]
[1737866778131,84.7539,259.48,259.41,2.84]
[1737866778438,80.9,259.44,259.41,2.84]
[1737866778613,23.776884,259.43,259.39,0.03]
[1737866778806,80.9,259.42,259.39,0.03]
[1737866779006,104.676884,259.41,259.39,0.03]
[1737866780140,3.855,259.4,259.39,0.03]
[1737866783237,42.19794606,259.4,259.39,0.03]
[1737866783745,23.776884,259.39,259.25,30.0]
[1737866783945,23.776884,259.37,259.25,30.0]
[1737866784837,23.776884,259.35,259.25,30.0]
[1737866785843,3.8559,259.34,259.23,0.03]
[1737866786027,23.776884,259.33,259.23,0.03]
[1737866786545,30.44984606,259.33,259.23,0.03]
[1737866786723,14.4957,259.34,259.23,0.03]
[1737866786724,30.44984606,259.31,259.23,0.03]
[1737866787041,23.776884,259.28,259.23,0.03]
[1737866787544,23.776884,259.26,259.23,0.03]
[1737866788042,23.776884,259.24,259.23,0.03]
[1737866792124,25.388784,259.24,259.23,0.03]
[1737866793431,26.388784,259.24,259.23,0.03]
[1737866793750,25.388784,259.24,259.23,0.03]
[1737866795636,26.388784,259.24,259.23,0.03]
[1737866796750,25.388784,259.24,259.23,0.03]
[1737866800145,20.0,259.19,259.14,0.03]
[1737866800330,23.776884,259.18,259.14,0.03]
[1737866800529,23.776884,259.16,259.14,0.03]
[1737866801721,27.635484,259.16,259.14,0.03]
[1737866802223,34.30844606,259.16,259.14,0.03]
[1737866803342,104.676884,259.15,259.14,0.03]
[1737866806745,23.776884,259.14,259.13,0.03]
[1737866806938,34.30874606,259.14,259.13,0.03]
[1737866811760,36.30874606,259.14,259.13,0.03]
[1737866812267,50.44984606,259.11,259.1,0.03]
[1737866812562,77.1416943,259.11,259.1,0.0001]
[1737866813766,81.0009943,259.11,259.1,0.0001]
[1737866813950,54.30914606,259.11,259.1,0.0001]
[1737866814336,6.67296206,259.18,259.1,0.0001]
[1737866815149,80.9,259.17,259.1,0.0001]
[1737866815761,6.67296206,259.14,259.1,0.0001]
[1737866816972,23.776884,259.13,259.1,0.0001]
[1737866817461,23.776884,259.15,259.1,0.0001]
[1737866817665,3.8587,259.16,259.1,0.0001]
[1737866817863,80.9,259.17,259.1,0.0001]
[1737866818180,23.776884,259.16,259.1,0.0001]
[1737866818344,0.063,259.15,259.1,0.0001]
[1737866820180,80.9,259.14,259.1,0.0001]
[1737866822778,23.776884,259.13,259.1,0.0001]
[1737866824045,38.0917756,259.13,259.1,0.0001]
[1737866824240,34.2326756,259.11,259.1,0.0001]
[1737866824445,35.2326756,259.11,259.1,0.0001]
[1737866825263,35.2326756,259.11,259.01,0.03]
[1737866825264,23.776884,259.06,259.01,0.03]
[1737866825473,34.2326756,259.02,259.01,0.03]
[1737866826184,38.0933756,259.02,259.01,0.03]
[1737866831556,39.0933756,259.02,259.01,0.03]
[1737866832470,38.0933756,259.02,259.01,0.03]
[1737866832870,14.3164916,259.02,259.01,0.03]
[1737866835064,10.4557916,259.04,259.01,0.03]
[1737866835264,14.3161916,259.04,259.01,0.03]
[1737866835475,14.3158916,259.06,259.01,0.03]
[1737866835673,3.8601,259.06,259.01,0.03]
[1737866836071,1.5377,259.12,259.01,0.03]
[1737866836072,10.4557916,259.1,259.01,0.03]
[1737866836286,3.8596,259.1,259.01,0.03]
[1737866836478,14.3149916,259.12,259.01,0.03]
[1737866837280,23.776884,259.11,259.01,0.03]
[1737866837670,23.776884,259.13,259.01,0.03]
[1737866838586,27.635984,259.13,259.01,3.8908]
[1737866840661,27.635984,259.13,259.01,33.8908]
[1737866842259,80.9,259.12,259.01,33.8908]
[1737866843886,23.776884,259.11,259.01,33.8908]
[1737866844387,27.636284,259.11,259.01,33.8908]
[1737866845069,10.4557916,259.1,259.01,30.03]
[1737866845392,10.4557916,259.1,259.01,0.03]
[1737866845700,34.2326756,259.02,259.01,0.03]
[1737866845888,34.2326756,259.02,259.01,0.0001]
[1737866846468,38.0933756,259.02,259.01,0.0001]
[1737866851990,27.637584,259.02,259.01,0.0001]
[1737866853192,38.0933756,259.02,259.01,0.0001]
[1737866855181,38.1563756,259.02,259.01,0.0001]
[1737866856708,27.700584,259.02,259.01,0.0001]
[1737866856910,0.063,259.02,259.01,0.0001]
[1737866857402,0.063,259.02,259.01,6.0313]
[1737866860582,0.063,259.02,259.01,0.0001]
[1737866865904,0.063,259.02,259.01,3.8609]
[1737866869027,0.063,259.02,259.01,34.24686711]
[1737866872233,0.063,259.02,259.01,33.8609]
[1737866872527,0.063,259.02,259.01,33.80797873]
[1737866874710,0.063,259.02,259.01,3.80797873]
[1737866876732,0.063,259.02,259.0,2.84]
[1737866877732,0.063,259.02,259.01,30.0]
[1737866878231,0.063,259.02,259.0,2.84]
[1737866878442,0.063,259.02,259.0,6.7009]
[1737866879913,0.063,259.02,259.0,6.7309]
[1737866880236,0.063,259.02,259.0,2.87]
[1737866883142,0.063,259.02,259.0,0.03]
[1737866884541,27.637684,259.01,259.0,0.03]
[1737866890541,23.776884,259.0,258.99,0.03]
[1737866890850,34.2326756,259.0,258.99,0.03]
[1737866891020,10.4557916,259.0,258.98,0.0001]
[1737866892647,27.637984,258.99,258.98,0.0001]
[1737866893237,0.063,259.02,258.98,0.0001]
[1737866894753,27.637684,259.01,258.98,0.0001]
[1737866895645,23.776884,258.99,258.98,0.0001]
[1737866895847,27.637984,258.99,258.98,0.0001]
[1737866896063,110.040984,258.99,258.98,0.0001]
[1737866897747,30.140984,258.99,258.98,0.0001]
[1737866900550,29.140984,258.99,258.98,0.0001]
[1737866903449,30.140984,258.99,258.98,0.0001]
[1737866905269,29.140984,258.99,258.98,0.0001]
[1737866905646,30.140984,258.99,258.98,0.0001]
[1737866910848,29.140984,258.99,258.98,0.0001]
[1737866911470,30.140984,258.99,258.98,0.0001]
[1737866911659,24.776884,258.98,258.97,0.0001]
[1737866912365,1.0,258.93,258.88,0.03]
[1737866912574,30.4813263,258.89,258.88,0.03]
[1737866913472,23.776884,258.89,258.88,0.03]
[1737866918469,3.8625,258.9,258.88,0.03]
[1737866918972,30.4813263,258.89,258.88,0.03]
[1737866924390,31.4813263,258.89,258.88,0.03]
[1737866924574,30.4813263,258.89,258.88,0.03]
[1737866927588,20.0,258.86,258.82,0.03]
[1737866927790,30.4813263,258.85,258.82,0.03]
[1737866929094,34.3445263,258.85,258.82,0.03]
[1737866931776,6.7044423,258.87,258.82,0.03]
[1737866931969,10.5674423,258.87,258.82,0.03]
[1737866932894,80.9,258.85,258.82,0.03]
[1737866938074,80.9,258.85,258.84,8.1279]
[1737866939796,3.8624,258.91,258.84,8.1279]
[1737866939996,23.776884,258.9,258.84,8.1279]
[1737866940178,6.7044423,258.89,258.84,0.03]
[1737866940793,23.776884,258.88,258.84,0.03]
[1737866940997,3.8629,258.87,258.84,0.03]
[1737866941477,10.5671423,258.89,258.84,0.03]
[1737866944299,6.7044423,258.85,258.84,0.03]
[1737866947312,34.3445263,258.85,258.84,0.03]
[1737866981543,30.4813263,258.85,258.84,0.03]
[1737866983312,0.063,258.88,258.84,0.03]
[1737866986457,23.839884,258.88,258.84,0.03]
[1737866986659,0.063,258.88,258.84,0.03]
[1737866992388,80.9,258.87,258.84,0.03]
[1737866993670,0.063,258.88,258.84,0.03]
[1737866993875,0.063,258.88,258.84,20.03]
[1737866994052,0.0001,258.88,258.85,7.8543]
[1737866994396,0.0001,258.88,258.86,2.82]
[1737866995862,0.0001,258.88,258.87,3.8629]
[1737867011974,0.0001,258.88,258.87,23.8629]
[1737867015101,0.0001,258.88,258.87,53.8629]
[1737867015480,0.0001,258.88,258.87,30.0]
[1737867015992,0.0001,258.88,258.85,10.2097]
[1737867016375,0.0001,258.88,258.86,20.0]
[1737867017599,0.0001,258.88,258.84,0.03]
[1737867017600,80.9,258.87,258.84,0.03]
[1737867017774,30.4813263,258.86,258.84,0.03]
[1737867017975,104.676884,258.85,258.84,0.03]
[1737867018188,23.776884,258.85,258.84,0.03]
[1737867019607,27.640084,258.85,258.84,0.03]
[1737867021001,28.640084,258.85,258.84,0.03]
[1737867025804,159.276884,258.84,258.83,0.03]
[1737867025987,30.4813263,258.75,258.74,0.03]
[1737867026391,32.0178263,258.75,258.74,0.03]
[1737867027310,35.8825263,258.75,258.74,0.03]
[1737867028395,36.8825263,258.75,258.74,0.03]
[1737867028597,1.0,258.73,258.72,0.0001]
[1737867028827,32.4813263,258.73,258.72,0.0001]
[1737867029313,32.4813263,258.73,258.61,0.03]
[1737867029314,6.7044423,258.63,258.61,0.03]
[1737867029890,30.4813263,258.63,258.61,0.03]
[1737867031201,6.7044423,258.67,258.61,0.03]
[1737867031407,23.776884,258.66,258.61,0.03]
[1737867033700,6.7044423,258.67,258.61,0.03]
[1737867033895,80.9,258.68,258.61,0.03]
[1737867035513,23.776884,258.67,258.61,0.03]
[1737867037007,80.9,258.66,258.61,0.03]
[1737867037209,80.9,258.65,258.61,0.03]
[1737867041010,80.9,258.65,258.61,23.8968]
[1737867041202,80.9,258.7,258.61,23.8968]
[1737867041402,80.9,258.69,258.61,23.8968]
[1737867046427,80.9,258.69,258.62,2.85]
[1737867046809,80.9,258.69,258.62,0.03]
[1737867047007,87.6044423,258.69,258.62,0.03]
[1737867050825,27.642684,258.68,258.62,0.03]
[1737867051028,6.7044423,258.64,258.62,0.03]
[1737867051217,104.676884,258.63,258.62,0.03]
[1737867054029,80.9,258.63,258.62,0.03]
[1737867057019,104.676884,258.63,258.62,0.03]
[1737867057226,80.9,258.63,258.62,0.03]
[1737867069637,80.9,258.69,258.62,0.03]
[1737867071460,23.776884,258.68,258.62,0.03]
[1737867071615,6.7044423,258.67,258.62,0.03]
[1737867071819,80.9,258.66,258.62,0.03]
[1737867075637,80.9,258.65,258.62,0.03]
[1737867076845,84.7662,258.65,258.62,0.03]
[1737867077018,104.676884,258.64,258.62,0.03]
[1737867077353,10.5706423,258.65,258.62,0.03]
[1737867077354,87.6044423,258.63,258.62,0.03]
[1737867077644,111.3813263,258.63,258.62,0.03]
[1737867078620,115.2478263,258.63,258.62,0.03]
[1737867079525,108.543384,258.63,258.62,0.03]
[1737867079924,6.7044423,258.67,258.62,0.03]
[1737867080126,10.5703423,258.67,258.62,0.03]
[1737867080535,6.7044423,258.64,258.62,0.03]
[1737867080731,3.8665,258.63,258.62,0.03]
[1737867080926,6.7044423,258.66,258.62,0.03]
[1737867081118,10.5705423,258.66,258.62,0.03]
[1737867083443,6.7044423,258.66,258.62,0.03]
[1737867083623,8.2483423,258.72,258.62,0.03]
[1737867083826,6.7044423,258.72,258.62,0.03]
[1737867084749,80.9,258.69,258.62,0.03]
[1737867085324,30.4813263,258.68,258.62,0.03]
[1737867085626,3.8659,258.67,258.62,0.03]
[1737867085817,84.7657,258.69,258.62,0.03]
[1737867087521,80.9,258.68,258.62,0.03]
[1737867090933,91.4702423,258.68,258.62,0.03]
[1737867093247,23.776884,258.67,258.62,0.03]
[1737867093451,80.9,258.66,258.62,0.03]
[1737867093631,87.6044423,258.66,258.62,0.03]
[1737867094944,23.776884,258.64,258.62,0.03]
[1737867095133,104.676884,258.63,258.62,0.03]
[1737867097564,80.9,258.63,258.62,0.03]
[1737867099055,3.9281,258.73,258.62,0.03]
[1737867100544,6.7044423,258.72,258.62,0.03]
[1737867101132,23.776884,258.71,258.62,0.03]
[1737867101431,6.7044423,258.7,258.62,0.03]
[1737867102334,84.7656,258.69,258.62,0.03]
[1737867103157,80.9,258.69,258.62,0.03]
[1737867104045,80.9,258.69,258.62,6.6253]
[1737867104560,80.9,258.69,258.62,10.4918]
[1737867105254,80.9,258.69,258.63,1.6391]
[1737867105939,80.9,258.69,258.65,20.0]
[1737867106452,80.9,258.69,258.63,1.6391]
[1737867112764,80.9,258.69,258.63,1.6691]
[1737867113444,80.9,258.69,258.63,5.5355]
[1737867119173,80.9,258.69,258.63,1.6691]
[1737867120343,80.9,258.69,258.63,5.5355]
[1737867123264,80.9,258.69,258.66,20.0]
[1737867125671,80.9,258.69,258.65,20.0]
[1737867125873,80.9,258.69,258.66,20.0]
[1737867126071,0.063,258.73,258.67,20.0]
[1737867126370,0.063,258.73,258.68,1.0]
[1737867126543,0.063,258.73,258.67,20.0]
[1737867127574,0.063,258.73,258.72,28.6023]
[1737867127770,0.063,258.73,258.72,28.98869503]
[1737867127964,80.9,258.8,258.72,43.51669503]
[1737867128160,80.9,258.86,258.72,43.51669503]
[1737867128475,0.0001,258.88,258.72,43.51669503]
[1737867128476,80.9,258.85,258.76,21.0]
[1737867128770,80.9,258.85,258.77,22.82]
[1737867129267,80.9,258.85,258.77,2.82]
[1737867130054,80.9,258.85,258.77,6.6843]
[1737867130484,80.9,258.85,258.8,20.0]
[1737867131069,80.9,258.85,258.77,6.6843]
[1737867131459,80.9,258.85,258.77,2.82]
[1737867133887,80.9,258.85,258.77,6.6843]
[1737867136090,80.963,258.85,258.77,6.6843]
[1737867138997,80.963,258.85,258.8,20.0]
[1737867139161,0.063,258.85,258.84,20.0]
[1737867139361,0.063,258.85,258.84,21.38619962]
[1737867139900,0.063,258.85,258.84,50.38619962]
[1737867140701,0.063,258.85,258.81,3.8636]
[1737867141002,0.063,258.85,258.82,30.0]
[1737867141163,0.063,258.85,258.8,20.0]
[1737867142390,0.063,258.85,258.84,1.0]
[1737867142590,0.063,258.85,258.84,4.8633]
[1737867143491,0.063,258.85,258.84,3.8633]
[1737867144183,0.063,258.85,258.84,4.8633]
[1737867144367,0.063,258.85,258.84,5.24953167]
[1737867144693,0.063,258.85,258.84,3.8633]
[1737867144862,0.063,258.85,258.84,4.8633]
[1737867145693,0.063,258.85,258.84,34.8633]
[1737867146067,0.063,258.85,258.84,33.8633]
[1737867146283,0.063,258.85,258.84,34.8633]
[1737867147997,0.063,258.85,258.84,4.8633]
[1737867148772,0.063,258.85,258.84,28.640184]
[1737867149579,0.063,258.85,258.84,29.02637163]
[1737867150998,0.063,258.85,258.84,59.02637163]
[1737867151483,0.063,258.85,258.84,58.640184]
[1737867153090,80.963,258.98,258.92,1.0]
[1737867153293,0.063,258.98,258.94,20.0]
[1737867154008,0.063,258.98,258.93,2.8]
[1737867155181,0.063,258.98,258.96,20.0]
[1737867158487,0.063,258.98,258.94,3.8618]
[1737867160800,0.063,258.98,258.93,2.8]
[1737867160992,0.063,258.98,258.93,6.6619]
[1737867163001,0.063,258.98,258.92,20.0]
[1737867163002,0.063,258.98,258.9,3.8623]
[1737867163204,0.063,258.98,258.91,2.8]
[1737867163412,0.063,258.98,258.9,3.8623]
[1737867164704,80.9,258.97,258.9,20.0]
[1737867164906,1.6516,258.96,258.9,20.0]
[1737867170619,80.9,258.95,258.9,20.0]
[1737867173502,80.9,258.95,258.88,3.8927]
[1737867173702,80.9,258.94,258.88,3.8927]
[1737867183111,84.7619,258.94,258.88,0.03]
[1737867183301,87.60095939,258.93,258.88,0.03]
[1737867183501,30.47784339,258.91,258.88,0.03]
[1737867183718,80.9,258.9,258.88,0.03]
[1737867185121,84.7626,258.89,258.88,0.03]
[1737867185416,116.88184339,258.89,258.88,0.03]
[1737867187000,123.46944339,258.89,258.88,0.03]
[1737867188423,42.56944339,258.89,258.88,0.03]
[1737867192534,18.79255939,258.89,258.88,0.03]
[1737867194023,1.6414,258.89,258.88,0.03]
[1737867196305,25.418284,258.89,258.88,0.03]
[1737867197811,25.418284,258.89,258.88,0.0001]
[1737867199517,20.0,258.85,258.83,0.03]
[1737867199832,30.47784339,258.84,258.83,0.03]
[1737867201220,34.34114339,258.84,258.83,0.03]
[1737867201417,10.56425939,258.84,258.83,0.03]
[1737867202142,17.18755939,258.84,258.83,0.03]
[1737867202343,20.0,258.8,258.73,0.03]
[1737867202513,6.70095939,258.77,258.73,0.03]
[1737867203133,10.56575939,258.75,258.73,0.03]
[1737867204051,10.56545939,258.77,258.73,0.03]
[1737867204226,80.9,258.79,258.73,0.03]
[1737867206248,80.9,258.78,258.73,0.03]
[1737867207523,84.7643,258.78,258.73,0.03]
[1737867208555,6.70095939,258.77,258.73,0.03]
[1737867209628,3.8645,258.76,258.73,0.03]
[1737867211751,111.37784339,258.75,258.73,0.03]
[1737867213637,27.641684,258.74,258.73,0.03]
[1737867214452,29.158984,258.74,258.73,0.03]
[1737867218552,5.3821,258.74,258.63,0.03]
[1737867218741,26.70095939,258.71,258.63,0.03]
[1737867218935,3.8654,258.7,258.63,6.2696]
[1737867219139,1.0,258.81,258.63,6.2696]
[1737867219140,6.70095939,258.77,258.63,6.2696]
[1737867219648,20.0,258.74,258.63,6.2696]
[1737867219857,20.0,258.72,258.63,6.2696]
[1737867220028,6.70095939,258.67,258.63,0.03]
[1737867221559,3.866,258.66,258.63,0.03]
[1737867223641,10.49663005,258.66,258.63,0.03]
[1737867223863,80.9,258.65,258.63,0.03]
[1737867225953,84.7662,258.65,258.63,0.03]
[1737867227167,80.9,258.64,258.63,0.03]
[1737867232860,80.9,258.71,258.63,0.03]
[1737867237469,10.49663005,258.67,258.63,0.03]
[1737867237673,10.49663005,258.65,258.63,0.03]
[1737867237847,23.776884,258.64,258.63,0.03]
[1737867239481,27.643184,258.64,258.63,0.03]
[1737867239774,3.8663,258.64,258.63,0.03]
[1737867245777,6.71962021,258.64,258.63,0.03]
[1737867247683,10.58592021,258.64,258.63,0.03]
[1737867249456,34.36280421,258.64,258.63,0.0001]
[1737867251468,24.776884,258.63,258.57,0.03]
[1737867251672,23.776884,258.59,258.57,0.03]
[1737867251988,6.71962021,258.58,258.57,0.03]
[1737867252989,10.58682021,258.58,258.57,0.03]
[1737867254592,3.8672,258.58,258.57,0.03]
[1737867254764,6.71962021,258.6,258.57,0.03]
[1737867255110,84.7667,258.62,258.57,0.03]
[1737867256184,80.9,258.62,258.57,0.03]
[1737867256889,80.9,258.61,258.57,0.03]
[1737867257592,80.9,258.6,258.57,0.03]
[1737867259784,84.767,258.6,258.57,0.03]
[1737867261395,80.9,258.6,258.57,0.03]
[1737867261781,84.767,258.6,258.57,0.03]
[1737867262691,80.9,258.59,258.57,0.03]
[1737867268585,80.9,258.58,258.57,0.03]
[1737867274686,3.8671,258.59,258.57,0.03]
[1737867280421,6.71962021,258.59,258.57,0.03]
[1737867281406,23.776884,258.58,258.57,0.03]
[1737867282422,27.644084,258.58,258.57,0.03]
[1737867285328,80.9,258.58,258.57,0.03]
[1737867285497,0.063,258.62,258.57,0.03]
[1737867285823,80.9,258.61,258.57,0.03]
[1737867304624,80.9,258.61,258.57,30.03]
[1737867305029,80.9,258.61,258.58,3.8672]
[1737867305416,80.9,258.61,258.6,20.0]
[1737867305823,0.063,258.62,258.6,20.0]
[1737867306731,0.063,258.62,258.59,20.0]
[1737867308341,0.063,258.62,258.58,23.8672]
[1737867309041,0.063,258.62,258.6,1.0]
[1737867309941,0.063,258.62,258.61,33.988384]
[1737867310325,0.0001,258.62,258.61,33.988384]
[1737867310533,80.9,258.77,258.65,23.776884]
[1737867310733,80.9,258.76,258.65,23.776884]
[1737867311241,80.9,258.76,258.68,20.0]
[1737867311447,80.9,258.76,258.68,22.8]
[1737867311818,80.9,258.76,258.68,23.8]
[1737867312023,84.7646,258.76,258.68,2.8]
[1737867312322,80.9,258.76,258.68,2.8]
[1737867312523,3.9281,258.73,258.68,2.8]
[1737867316142,80.9,258.72,258.68,2.8]
[1737867317942,80.9,258.72,258.68,6.6657]
[1737867318344,80.9,258.72,258.68,2.8]
[1737867319346,84.7652,258.72,258.63,3.8664]
[1737867319925,80.9,258.72,258.63,3.8664]
[1737867320138,80.9,258.72,258.65,20.0]
[1737867320451,80.9,258.72,258.67,20.0]
[1737867321231,80.9,258.72,258.65,1.0]
[1737867321432,80.9,258.72,258.66,20.0]
[1737867321861,80.9,258.72,258.67,23.776884]
[1737867322027,80.9,258.72,258.68,3.8657]
[1737867322369,0.063,258.73,258.68,3.8657]
[1737867325856,0.063,258.73,258.66,20.0]
[1737867326044,0.063,258.73,258.67,2.8]
[1737867326766,3.8651,258.72,258.63,2.8]
[1737867326934,3.8651,258.72,258.64,30.0]
[1737867327537,3.8651,258.72,258.63,2.8]
[1737867328063,80.9,258.71,258.63,2.8]
[1737867328654,80.9,258.71,258.62,3.8665]
[1737867328840,80.9,258.71,258.62,6.6665]
[1737867329754,80.9,258.71,258.62,6.6965]
[1737867330859,80.9,258.71,258.62,3.8965]
[1737867331064,80.9,258.71,258.62,6.6965]
[1737867334266,80.9,258.7,258.62,6.6965]
[1737867336153,80.9,258.69,258.62,6.6965]
[1737867336360,84.7656,258.69,258.62,0.03]
[1737867339959,80.9,258.68,258.62,0.03]
[1737867347060,80.9,258.68,258.63,20.0]
[1737867348865,80.9,258.68,258.64,3.8663]
[1737867349454,80.9,258.68,258.62,0.03]
[1737867349667,80.9,258.68,258.62,33.8965]
[1737867350468,80.9,258.68,258.62,3.8965]
[1737867351878,80.9,258.68,258.62,0.03]
[1737867353581,80.963,258.68,258.62,3.8966]
[1737867363190,80.963,258.68,258.63,20.0]
[1737867364395,80.963,258.68,258.64,3.8663]
[1737867370661,80.963,258.68,258.62,0.03]
[1737867373599,80.963,258.68,258.62,3.8966]
[1737867377393,80.963,258.68,258.62,0.03]
[1737867377695,80.9,258.67,258.62,0.03]
[1737867377866,87.61962021,258.66,258.62,0.03]
[1737867378070,80.9,258.66,258.62,0.03]
[1737867379781,84.766,258.66,258.62,0.03]
[1737867381693,80.9,258.65,258.62,0.03]
[1737867387590,80.9,258.64,258.62,0.03]
[1737867393403,80.9,258.63,258.62,0.03]
[1737867399497,3.8664,258.64,258.62,0.03]
[1737867400723,10.58602021,258.64,258.62,0.03]
[1737867401014,10.64902021,258.64,258.62,0.03]
[1737867407826,0.063,258.64,258.62,0.03]
[1737867420766,0.063,258.64,258.62,20.03]
[1737867421561,0.063,258.64,258.63,43.776884]
[1737867422431,0.063,258.68,258.63,58.309684]
[1737867422632,0.063,258.68,258.63,88.309684]
[1737867423663,0.063,258.68,258.63,87.309684]
[1737867425668,0.063,258.68,258.63,57.309684]
[1737867425867,0.063,258.68,258.63,57.339684]
[1737867426577,0.063,258.64,258.63,57.339684]
[1737867428464,0.063,258.64,258.63,60.119684]
[1737867428650,0.063,258.64,258.63,90.119684]
[1737867431081,0.063,258.64,258.63,56.6765]
[1737867432285,0.063,258.64,258.63,53.8965]
[1737867432488,0.063,258.64,258.63,56.6765]
[1737867432790,0.063,258.64,258.63,26.6765]
[1737867432962,0.063,258.64,258.63,2.81]
[1737867434088,0.063,258.64,258.63,6.6765]
[1737867434564,0.063,258.64,258.63,0.03]
[1737867458710,80.963,258.64,258.63,0.03]
[1737867459608,87.68262021,258.64,258.63,0.03]
[1737867461699,113.11230421,258.64,258.63,0.03]
[1737867466116,1.0,258.52,258.44,23.776884]
[1737867466424,1.0,258.52,258.46,30.0]
[1737867466620,1.0,258.52,258.43,23.776884]
[1737867468619,1.0,258.52,258.46,20.0]
[1737867469407,1.0,258.52,258.44,23.8693]
[1737867470013,1.0,258.52,258.45,20.0]
[1737867470903,1.0,258.52,258.46,3.869]
[1737867474718,1.0,258.57,258.47,53.776884]
[1737867474906,0.063,258.55,258.47,53.776884]
[1737867476708,0.063,258.55,258.51,20.0]
[1737867478839,0.063,258.55,258.52,3.8681]
[1737867479441,0.063,258.55,258.52,23.8681]
[1737867480533,0.063,258.55,258.54,3.8678]
[1737867480734,80.9,258.6,258.57,20.0]
[1737867480921,0.063,258.64,258.57,20.0]
[1737867481238,0.063,258.64,258.58,43.776884]
[1737867482122,0.063,258.64,258.59,3.8671]
[1737867482840,0.063,258.64,258.62,23.776884]
[1737867483222,0.063,258.64,258.63,0.38654942]
[1737867484107,0.063,258.64,258.62,23.776884]
[1737867484711,0.063,258.64,258.62,43.776884]
[1737867485830,0.063,258.64,258.63,27.643384]
[1737867486030,0.063,258.64,258.63,57.643384]
[1737867496354,0.063,258.64,258.63,27.643384]
[1737867499359,0.063,258.64,258.63,57.643384]
[1737867503541,0.063,258.64,258.63,27.643384]
[1737867504750,0.0001,258.64,258.63,28.643384]
[1737867505056,0.063,258.68,258.67,20.0]
[1737867506447,0.063,258.71,258.67,77.642784]
[1737867506636,0.063,258.71,258.68,0.38643708]
[1737867506836,0.063,258.71,258.7,23.776884]
[1737867507434,0.063,258.71,258.7,53.776884]
[1737867509057,0.063,258.71,258.7,57.642284]